[Event "FIDE World Senior-Women CC 2023"]
[Site "Terrasini"]
[Date "2023.10.28"]
[Round "4.3"]
[White "Folkova, Martina"]
[Black "Calzetta Ruiz, Monica"]
[Result "0-1"]
[ECO "C58"]
[WhiteElo "2022"]
[BlackElo "2239"]
[Annotator "ChessBase"]
[PlyCount "54"]
[EventDate "2023.10.22"]
[EventType "swiss"]
[EventCountry "ITA"]
[SourceTitle "playchess.com"]
[Source "ChessBase"]
[SourceQuality "1"]
[TimeControl "40/5400+30:1800+30"]

1. e4 {[%emt 0:00:03]} e5 {[%emt 0:00:08]} 2. Nf3 {[%emt 0:00:06]} Nc6 {[%emt 0:00:06]} 3. Bc4 {[%emt 0:02:42]} Nf6 {[%emt 0:00:06]} 4. Ng5 {[%emt 0:08:18]} d5 {[%emt 0:01:31]} 5. exd5 {[%emt 0:00:07]} Na5 {[%emt 0:02:09]} 6. Bb5+ {[%emt 0:00:12]} c6 {[%emt 0:00:05]} 7. dxc6 {[%emt 0:00:12]} bxc6 {[%emt 0:00:06]} 8. Bf1 {[%emt 0:03:48]} h6 {[%emt 0:00:51]} 9. Nf3 {[%emt 0:00:44]} e4 {[%emt 0:06:03]} 10. Ng1 {[%emt 0:02:09]} Bc5 {[%emt 0:02:35]} 11. Nc3 {[%emt 0:59:56]} Bg4 {[%emt 0:28:16]} 12. f3 {[%emt 0:01:15]} exf3 {[%emt 0:00:11]} 13. Nxf3 {[%emt 0:01:39]} O-O {[%emt 0:00:47]} 14. Be2 {[%emt 0:02:59]} Bxf3 {[%emt 0:03:45]} 15. Bxf3 {[%emt 0:03:46]} Re8+ {[%emt 0:00:28]} 16. Ne2 {[%emt 0:01:38]} Qd4 {[%emt 0:01:08]} 17. Rf1 {[%emt 0:00:14]} Qh4+ {[%emt 0:00:17]} 18. g3 {[%emt 0:00:06]} Qxh2 {[%emt 0:00:45]} 19. d4 {[%emt 0:00:38]} Qxg3+ {[%emt 0:08:18]} 20. Kd2 {[%emt 0:00:50]} Qg5+ {[%emt 0:02:05]} 21. Kc3 {[%emt 0:00:50]} Nd5+ {[%emt 0:00:51]} 22. Bxd5 {[%emt 0:01:02]} Qxd5 {[%emt 0:00:03]} 23. b3 {[%emt 0:01:41]} Rxe2 {[%emt 0:00:47]} 24. dxc5 {[%emt 0:00:18]} Qe5+ {[%emt 0:01:13]} 25. Kb4 {[%emt 0:02:30]} Rb8+ {[%emt 0:02:15]} 26. Ka3 {[%emt 0:01:52]} Nc4+ {[%emt 0:01:11]} 27. Ka4 {[%emt 0:00:38]} Qxc5 {[%emt 0:00:34]} 0-1

[Event "FIDE World Senior-Women CC 2023"]
[Site "Terrasini"]
[Date "2023.10.28"]
[Round "4.4"]
[White "Mikhaylova, Irina"]
[Black "Wagner-Michel, Annett"]
[Result "1-0"]
[ECO "E11"]
[WhiteElo "2216"]
[BlackElo "2033"]
[Annotator "ChessBase"]
[PlyCount "77"]
[EventDate "2023.10.22"]
[EventType "swiss"]
[EventCountry "ITA"]
[SourceTitle "playchess.com"]
[Source "ChessBase"]
[SourceQuality "1"]
[TimeControl "40/5400+30:1800+30"]

1. d4 {[%emt 0:00:04]} Nf6 {[%emt 0:00:07]} 2. Nf3 {[%emt 0:01:33]} e6 {[%emt 0:01:01]} 3. c4 {[%emt 0:00:08]} Bb4+ {[%emt 0:00:27]} 4. Nbd2 {[%emt 0:01:16]} a5 {[%emt 0:02:42]} 5. g3 {[%emt 0:00:45]} d5 {[%emt 0:01:38]} 6. Bg2 {[%emt 0:00:31]} dxc4 {[%emt 0:07:21]} 7. Qc2 {[%emt 0:07:33]} Nbd7 {[%emt 0:14:53]} 8. O-O {[%emt 0:26:57]} Bxd2 {[%emt 0:11:04]} 9. Bxd2 {[%emt 0:07:40]} Nb6 {[%emt 0:13:21]} 10. b3 {[%emt 0:01:02]} c3 {[%emt 0:07:02]} 11. Bxc3 {[%emt 0:03:59]} Nbd5 {[%emt 0:01:37]} 12. Rac1 {[%emt 0:04:26]} Nxc3 {[%emt 0:01:50]} 13. Qxc3 {[%emt 0:00:02]} Nd5 {[%emt 0:02:16]} 14. Qd2 {[%emt 0:01:11]} O-O {[%emt 0:07:51]} 15. e4 {[%emt 0:01:13]} Ne7 {[%emt 0:01:06]} 16. Qc3 {[%emt 0:01:35]} c6 {[%emt 0:00:41]} 17. Ne5 {[%emt 0:01:19]} f6 {[%emt 0:03:27]} 18. Nd3 {[%emt 0:11:24]} b6 {[%emt 0:01:48]} 19. Rfd1 {[%emt 0:00:15]} Bd7 {[%emt 0:03:13]} 20. h4 {[%emt 0:02:51]} Kh8 {[%emt 0:01:29]} 21. Nf4 {[%emt 0:00:32]} f5 {[%emt 0:01:22]} 22. d5 {[%emt 0:02:51]} cxd5 {[%emt 0:00:46]} 23. exd5 {[%emt 0:00:13]} Rc8 {[%emt 0:00:34]} 24. Qe5 {[%emt 0:00:24]} Rxc1 {[%emt 0:00:32]} 25. Rxc1 {[%emt 0:00:07]} exd5 {[%emt 0:00:12]} 26. Re1 {[%emt 0:10:52]} Nc6 {[%emt 0:02:51]} 27. Qxd5 {[%emt 0:00:34]} Nb4 {[%emt 0:00:22]} 28. Qd6 {[%emt 0:02:34]} Bc8 {[%emt 0:01:08]} 29. Rd1 {[%emt 0:00:24]} Qxd6 {[%emt 0:12:19]} 30. Rxd6 {[%emt 0:00:04]} Nxa2 {[%emt 0:00:00]} 31. Rxb6 {[%emt 0:00:16]} Nc1 {[%emt 0:00:00]} 32. Rb8 {[%emt 0:02:54]} g5 {[%emt 0:00:00]} 33. hxg5 {[%emt 0:02:57]} Kg7 {[%emt 0:00:00]} 34. Bd5 {[%emt 0:00:15]} Re8 {[%emt 0:00:00]} 35. Kh2 {[%emt 0:03:03]} Kf8 {[%emt 0:00:00]} 36. Ra8 {[%emt 0:01:17]} Bd7 {[%emt 0:00:00]} 37. Rxa5 {[%emt 0:00:25]} Rb8 {[%emt 0:00:00]} 38. Ra7 {[%emt 0:00:37]} Ke8 {[%emt 0:00:00]} 39. Nh5 {[%emt 0:00:42]} 1-0

[Event "FIDE World Senior-Women CC 2023"]
[Site "Terrasini"]
[Date "2023.10.28"]
[Round "4.5"]
[White "Burchardt, Brigitte"]
[Black "Makropoulou, Marina"]
[Result "1/2-1/2"]
[ECO "C24"]
[WhiteElo "2124"]
[BlackElo "2081"]
[Annotator "NA"]
[PlyCount "30"]
[EventDate "2023.10.22"]
[EventType "swiss"]
[EventCountry "ITA"]
[SourceTitle "playchess.com"]
[Source "ChessBase"]
[SourceQuality "1"]
[TimeControl "40/5400+30:1800+30"]

1. e4 {[%emt 0:00:03]} e5 {[%emt 0:00:17]} 2. Bc4 {[%emt 0:00:05]} Nf6 {[%emt 0:00:27]} 3. d3 {[%emt 0:02:11]} c6 {[%emt 0:00:37]} 4. Nf3 {[%emt 0:03:04]} d5 {[%emt 0:00:42]} 5. Bb3 {[%emt 0:02:49]} a5 {[%emt 0:02:43]} 6. a4 {[%emt 0:03:02]} Bb4+ {[%emt 0:00:18]} 7. c3 {[%emt 0:04:50]} Bd6 {[%emt 0:00:29]} 8. Nbd2 {[%emt 0:10:12]} O-O {[%emt 0:02:06]} 9. O-O {[%emt 0:04:30]} h6 {[%emt 0:15:55]} 10. Re1 {[%emt 0:03:00]} Re8 {[%emt 0:05:18]} 11. Nf1 {[%emt 0:05:08]} Bc7 {[%emt 0:15:23]} 12. Qc2 {[%emt 0:08:57]} Bg4 {[%emt 0:03:33]} 13. Qe2 {[%emt 0:03:37]} Nbd7 {[%emt 0:01:32]} 14. h3 {[%emt 0:04:30]} Be6 {[%emt 0:01:48]} 15. Bc2 {[%emt 0:03:02]} Rb8 {[%emt 0:06:32]} 1/2-1/2

[Event "FIDE World Senior-Women CC 2023"]
[Site "Terrasini"]
[Date "2023.10.29"]
[Round "5.1"]
[White "Calzetta Ruiz, Monica"]
[Black "Klinova, Masha"]
[Result "1-0"]
[ECO "B06"]
[WhiteElo "2239"]
[BlackElo "2249"]
[Annotator "ChessBase"]
[PlyCount "99"]
[EventDate "2023.10.22"]
[EventType "swiss"]
[EventCountry "ITA"]
[SourceTitle "playchess.com"]
[Source "ChessBase"]
[SourceQuality "1"]
[TimeControl "40/5400+30:1800+30"]

1. e4 {[%emt 0:00:04]} d6 {[%emt 0:00:03]} 2. d4 {[%emt 0:00:06]} g6 {[%emt 0:00:04]} 3. Nc3 {[%emt 0:00:25]} Bg7 {[%emt 0:00:06]} 4. Be3 {[%emt 0:01:01]} a6 {[%emt 0:00:05]} 5. h4 {[%emt 0:06:48]} h5 {[%emt 0:15:06]} 6. Qd2 {[%emt 0:02:00]} Nf6 {[%emt 0:03:44]} 7. f3 {[%emt 0:00:36]} Nc6 {[%emt 0:04:56]} 8. O-O-O {[%emt 0:04:56]} b5 {[%emt 0:04:09]} 9. Kb1 {[%emt 0:02:00]} e5 {[%emt 0:03:01]} 10. dxe5 {[%emt 0:11:05]} Nxe5 {[%emt 0:03:33]} 11. Bg5 {[%emt 0:01:18]} Be6 {[%emt 0:03:34]} 12. Nh3 {[%emt 0:16:20]} Qd7 {[%emt 0:21:38]} 13. Nf4 {[%emt 0:03:46]} O-O {[%emt 0:01:03]} 14. Nxe6 {[%emt 0:13:38]} fxe6 {[%emt 0:06:18]} 15. f4 {[%emt 0:09:40]} b4 {[%emt 0:02:38]} 16. Bxf6 {[%emt 0:07:12]} bxc3 {[%emt 0:03:10]} 17. Qxc3 {[%emt 0:00:05]} Rxf6 {[%emt 0:06:06]} 18. fxe5 {[%emt 0:01:41]} Rf4 {[%emt 0:01:08]} 19. Bc4 {[%emt 0:02:43]} Rxe4 {[%emt 0:04:24]} 20. Bxe6+ {[%emt 0:00:51]} Qxe6 {[%emt 0:00:14]} 21. Qc6 {[%emt 0:14:45]} Qxe5 {[%emt 0:04:26]} 22. Qxa8+ {[%emt 0:00:00]} Kh7 {[%emt 0:00:05]} 23. c3 {[%emt 0:00:00]} Rb4 {[%emt 0:04:26]} 24. Qf3 {[%emt 0:00:00]} Qxc3 {[%emt 0:01:28]} 25. Qxc3 {[%emt 0:00:00]} Bxc3 {[%emt 0:00:03]} 26. b3 {[%emt 0:00:00]} Be5 {[%emt 0:00:18]} 27. Rc1 {[%emt 0:00:00]} c5 {[%emt 0:01:00]} 28. Rc4 {[%emt 0:00:00]} Rb6 {[%emt 0:00:48]} 29. g4 {[%emt 0:00:00]} Rb7 {[%emt 0:02:09]} 30. gxh5 {[%emt 0:00:00]} gxh5 {[%emt 0:00:02]} 31. Ra4 {[%emt 0:00:00]} Rb6 {[%emt 0:01:08]} 32. Rf1 {[%emt 0:00:00]} Kg6 {[%emt 0:00:47]} 33. Rf8 {[%emt 0:00:00]} Bf6 {[%emt 0:01:11]} 34. Ra8 {[%emt 0:00:00]} Kf5 {[%emt 0:00:56]} 35. R8xa6 {[%emt 0:00:00]} Rxa6 {[%emt 0:01:15]} 36. Rxa6 {[%emt 0:00:00]} Bxh4 {[%emt 0:00:05]} 37. Rxd6 {[%emt 0:00:00]} Bf2 {[%emt 0:00:43]} 38. a4 {[%emt 0:00:00]} h4 {[%emt 0:00:07]} 39. a5 {[%emt 0:02:53]} h3 {[%emt 0:00:37]} 40. Rd1 {[%emt 0:00:38]} Kg4 {[%emt 0:01:41]} 41. a6 {[%emt 0:30:15]} c4 {[%emt 0:30:09]} 42. bxc4 {[%emt 0:00:34]} h2 {[%emt 0:00:05]} 43. Rh1 {[%emt 0:02:53]} Kg3 {[%emt 0:01:21]} 44. Kc2 {[%emt 0:00:12]} Kg2 {[%emt 0:00:22]} 45. Rxh2+ {[%emt 0:00:07]} Kxh2 {[%emt 0:00:02]} 46. Kd3 {[%emt 0:00:06]} Kg3 {[%emt 0:00:57]} 47. Ke4 {[%emt 0:00:06]} Ba7 {[%emt 0:01:59]} 48. Kd5 {[%emt 0:00:31]} Kf4 {[%emt 0:00:07]} 49. c5 {[%emt 0:00:11]} Kf5 {[%emt 0:00:11]} 50. c6 {[%emt 0:00:08]} 1-0

[Event "FIDE World Senior-Women CC 2023"]
[Site "Terrasini"]
[Date "2023.10.29"]
[Round "5.2"]
[White "Strutinskaia, Galina"]
[Black "Mikhaylova, Irina"]
[Result "1/2-1/2"]
[ECO "A37"]
[WhiteElo "2114"]
[BlackElo "2216"]
[Annotator "RC"]
[PlyCount "34"]
[EventDate "2023.10.22"]
[EventType "swiss"]
[EventCountry "ITA"]
[SourceTitle "playchess.com"]
[Source "ChessBase"]
[SourceQuality "1"]
[TimeControl "40/5400+30:1800+30"]

1. c4 {[%emt 0:00:04]} g6 {[%emt 0:03:58]} 2. Nc3 {[%emt 0:01:44]} c5 {[%emt 0:00:20]} 3. g3 {[%emt 0:03:31]} Bg7 {[%emt 0:01:01]} 4. Bg2 {[%emt 0:00:51]} Nc6 {[%emt 0:00:06]} 5. Nf3 {[%emt 0:01:30]} d6 {[%emt 0:00:19]} 6. d3 {[%emt 0:00:15]} e6 {[%emt 0:00:37]} 7. Bg5 {[%emt 0:01:03]} Nge7 {[%emt 0:00:17]} 8. O-O {[%emt 0:00:18]} h6 {[%emt 0:00:18]} 9. Bd2 {[%emt 0:00:11]} O-O {[%emt 0:01:15]} 10. a3 {[%emt 0:00:15]} Rb8 {[%emt 0:02:38]} 11. b4 {[%emt 0:01:01]} b6 {[%emt 0:00:30]} 12. Rb1 {[%emt 0:00:23]} Bb7 {[%emt 0:00:28]} 13. Qc1 {[%emt 0:00:22]} Kh7 {[%emt 0:00:12]} 14. e4 {[%emt 0:00:37]} Ng8 {[%emt 0:06:49]} 15. b5 {[%emt 0:02:07]} Nd4 {[%emt 0:00:08]} 16. Nxd4 {[%emt 0:00:06]} Bxd4 {[%emt 0:00:26]} 17. Ne2 {[%emt 0:00:05]} Bg7 {[%emt 0:00:11]} 1/2-1/2

[Event "FIDE World Senior-Women CC 2023"]
[Site "Terrasini"]
[Date "2023.10.29"]
[Round "5.3"]
[White "Krasenkowa, Elena"]
[Black "Bogumil, Tatiana"]
[Result "1/2-1/2"]
[ECO "A38"]
[WhiteElo "2089"]
[BlackElo "2080"]
[Annotator "NA RC"]
[PlyCount "25"]
[EventDate "2023.10.22"]
[EventType "swiss"]
[EventCountry "ITA"]
[SourceTitle "playchess.com"]
[Source "ChessBase"]
[SourceQuality "1"]
[TimeControl "40/5400+30:1800+30"]

1. Nf3 {[%emt 0:00:03]} Nf6 {[%emt 0:00:15]} 2. c4 {[%emt 0:00:08]} c5 {[%emt 0:00:21]} 3. Nc3 {[%emt 0:00:15]} g6 {[%emt 0:00:46]} 4. d3 {[%emt 0:00:14]} d5 {[%emt 0:00:48]} 5. cxd5 {[%emt 0:00:15]} Nxd5 {[%emt 0:00:09]} 6. g3 {[%emt 0:00:11]} Bg7 {[%emt 0:00:51]} 7. Nxd5 {[%emt 0:00:38]} Qxd5 {[%emt 0:00:07]} 8. Bg2 {[%emt 0:00:06]} O-O {[%emt 0:01:45]} 9. O-O {[%emt 0:01:15]} Nc6 {[%emt 0:00:55]} 10. Nd2 {[%emt 0:01:32]} Qd7 {[%emt 0:01:33]} 11. Nc4 {[%emt 0:00:09]} b6 {[%emt 0:01:33]} 12. Rb1 {[%emt 0:01:19]} Bb7 {[%emt 0:01:02]} 13. Bd2 {[%emt 0:00:13]} 1/2-1/2

[Event "FIDE World Senior-Women CC 2023"]
[Site "Terrasini"]
[Date "2023.10.29"]
[Round "5.4"]
[White "Gaprindashvili, Nona"]
[Black "Burchardt, Brigitte"]
[Result "1/2-1/2"]
[ECO "D10"]
[WhiteElo "2267"]
[BlackElo "2124"]
[Annotator "ChessBase"]
[PlyCount "100"]
[EventDate "2023.10.22"]
[EventType "swiss"]
[EventCountry "ITA"]
[SourceTitle "playchess.com"]
[Source "ChessBase"]
[SourceQuality "1"]
[TimeControl "40/5400+30:1800+30"]

1. d4 {[%emt 0:00:07]} d5 {[%emt 0:00:04]} 2. c4 {[%emt 0:00:08]} c6 {[%emt 0:00:07]} 3. cxd5 {[%emt 0:00:15]} cxd5 {[%emt 0:00:06]} 4. Bf4 {[%emt 0:00:06]} Nf6 {[%emt 0:04:33]} 5. Nc3 {[%emt 0:01:27]} e6 {[%emt 0:09:37]} 6. e3 {[%emt 0:00:35]} a6 {[%emt 0:05:01]} 7. Bd3 {[%emt 0:02:16]} Bd6 {[%emt 0:05:07]} 8. Bg3 {[%emt 0:00:15]} Nc6 {[%emt 0:06:14]} 9. a3 {[%emt 0:00:39]} e5 {[%emt 0:16:02]} 10. dxe5 {[%emt 0:01:30]} Nxe5 {[%emt 0:02:56]} 11. Be2 {[%emt 0:00:44]} Be6 {[%emt 0:05:05]} 12. Nf3 {[%emt 0:01:06]} Nxf3+ {[%emt 0:02:14]} 13. Bxf3 {[%emt 0:00:04]} O-O {[%emt 0:04:24]} 14. O-O {[%emt 0:01:50]} Bxg3 {[%emt 0:01:37]} 15. hxg3 {[%emt 0:00:02]} Qb6 {[%emt 0:03:35]} 16. Na4 {[%emt 0:10:01]} Qd6 {[%emt 0:01:28]} 17. Qd4 {[%emt 0:02:42]} Rfd8 {[%emt 0:05:34]} 18. Nb6 {[%emt 0:03:14]} Rab8 {[%emt 0:00:25]} 19. Rfd1 {[%emt 0:00:13]} Qe7 {[%emt 0:01:46]} 20. Rac1 {[%emt 0:06:43]} h6 {[%emt 0:02:32]} 21. a4 {[%emt 1:07:03]} Ne8 {[%emt 0:05:35]} 22. Bxd5 {[%emt 0:00:00]} Nf6 {[%emt 0:01:33]} 23. e4 {[%emt 0:00:00]} Bxd5 {[%emt 0:02:51]} 24. exd5 {[%emt 0:00:00]} Ne8 {[%emt 0:00:12]} 25. b4 {[%emt 0:00:00]} Nd6 {[%emt 0:00:25]} 26. Re1 {[%emt 0:00:00]} Qg5 {[%emt 0:00:06]} 27. Rc7 {[%emt 0:00:00]} Re8 {[%emt 0:00:54]} 28. Rcc1 {[%emt 0:00:00]} Rbd8 {[%emt 0:00:07]} 29. Qf4 Qg6 {[%emt 0:00:52]} 30. Re3 {[%emt 0:00:00]} Re4 {[%emt 0:02:46]} 31. Rxe4 {[%emt 0:00:00]} Nxe4 {[%emt 0:00:06]} 32. a5 {[%emt 0:00:00]} Nd6 {[%emt 0:00:23]} 33. Re1 {[%emt 0:00:00]} Nb5 {[%emt 0:03:50]} 34. Re7 {[%emt 0:00:00]} Nd6 {[%emt 0:01:59]} 35. g4 {[%emt 0:00:00]} Qd3 {[%emt 0:01:21]} 36. Kh2 {[%emt 0:00:00]} Qd1 {[%emt 0:00:49]} 37. f3 {[%emt 0:00:00]} Qd3 {[%emt 0:00:18]} 38. Kg3 {[%emt 0:00:00]} h5 {[%emt 0:00:44]} 39. Kh2 {[%emt 0:03:39]} hxg4 {[%emt 0:00:47]} 40. Qxg4 {[%emt 0:00:38]} Qd2 {[%emt 0:01:30]} 41. Re5 {[%emt 0:31:07]} g6 {[%emt 0:33:33]} 42. Qh4 {[%emt 0:00:00]} Kg7 {[%emt 0:00:00]} 43. Qxd8 {[%emt 0:00:00]} Qf4+ {[%emt 0:00:00]} 44. Kg1 {[%emt 0:00:00]} Qxe5 {[%emt 0:00:00]} 45. Qh4 {[%emt 0:00:00]} Nf5 {[%emt 0:00:00]} 46. Qe4 {[%emt 0:00:00]} Qc3 {[%emt 0:00:00]} 47. Kh2 {[%emt 0:00:00]} Qd2 {[%emt 0:00:00]} 48. f4 {[%emt 0:00:00]} Qd1 {[%emt 0:00:00]} 49. Qe5+ {[%emt 0:00:46]} Kh7 {[%emt 0:00:00]} 50. Qc3 {[%emt 0:00:26]} Nh6 {[%emt 0:00:07]} 1/2-1/2

[Event "FIDE World Senior-Women CC 2023"]
[Site "Terrasini"]
[Date "2023.10.29"]
[Round "5.5"]
[White "Tereladze, Sopio"]
[Black "Kierzek, Mira"]
[Result "1-0"]
[ECO "C43"]
[WhiteElo "2215"]
[BlackElo "1941"]
[Annotator "ChessBase"]
[PlyCount "87"]
[EventDate "2023.10.22"]
[EventType "swiss"]
[EventCountry "ITA"]
[SourceTitle "playchess.com"]
[Source "ChessBase"]
[SourceQuality "1"]
[TimeControl "40/5400+30:1800+30"]

1. e4 {[%emt 0:00:01]} e5 {[%emt 0:00:23]} 2. Nf3 {[%emt 0:00:08]} Nf6 {[%emt 0:00:50]} 3. d4 {[%emt 0:03:30]} Nxe4 {[%emt 0:01:36]} 4. Bd3 {[%emt 0:01:52]} d5 {[%emt 0:00:41]} 5. Nxe5 {[%emt 0:00:24]} Nd7 {[%emt 0:01:12]} 6. Qe2 {[%emt 0:01:58]} Nxe5 {[%emt 0:01:59]} 7. Bxe4 {[%emt 0:02:19]} dxe4 {[%emt 0:18:14]} 8. Qxe4 {[%emt 0:00:42]} Bd6 {[%emt 0:03:26]} 9. dxe5 {[%emt 0:00:55]} O-O {[%emt 0:02:03]} 10. O-O {[%emt 0:00:13]} Re8 {[%emt 0:00:12]} 11. Bf4 {[%emt 0:00:28]} f6 {[%emt 0:11:54]} 12. Nc3 {[%emt 0:05:25]} Bxe5 {[%emt 0:02:21]} 13. Rad1 {[%emt 0:02:16]} Qe7 {[%emt 0:12:50]} 14. Bxe5 {[%emt 0:04:19]} Qxe5 {[%emt 0:00:17]} 15. Qxe5 {[%emt 0:00:28]} Rxe5 {[%emt 0:00:51]} 16. Rd8+ {[%emt 0:00:24]} Kf7 {[%emt 0:00:08]} 17. Rfd1 {[%emt 0:00:59]} Bg4 {[%emt 0:01:59]} 18. Rxa8 {[%emt 0:00:50]} Bxd1 {[%emt 0:00:13]} 19. f4 {[%emt 0:00:06]} Re7 {[%emt 0:03:31]} 20. Rxa7 {[%emt 0:01:44]} Bxc2 {[%emt 0:00:40]} 21. Rxb7 {[%emt 0:00:08]} c6 {[%emt 0:03:42]} 22. Rxe7+ {[%emt 0:00:05]} Kxe7 {[%emt 0:00:07]} 23. Kf2 {[%emt 0:00:09]} Kd6 {[%emt 0:00:16]} 24. Ke3 {[%emt 0:01:14]} Kc5 {[%emt 0:00:18]} 25. g4 {[%emt 0:02:35]} Bg6 {[%emt 0:01:02]} 26. Ne4+ {[%emt 0:00:38]} Kd5 {[%emt 0:00:33]} 27. f5 {[%emt 0:00:40]} Bf7 {[%emt 0:00:11]} 28. b4 {[%emt 0:00:39]} Ke5 {[%emt 0:01:05]} 29. a4 {[%emt 0:02:37]} h5 {[%emt 0:00:56]} 30. h3 {[%emt 0:01:08]} hxg4 {[%emt 0:00:06]} 31. hxg4 {[%emt 0:00:00]} Bc4 {[%emt 0:03:19]} 32. a5 {[%emt 0:00:53]} c5 {[%emt 0:10:46]} 33. Nxc5 {[%emt 0:02:23]} Bd5 {[%emt 0:00:12]} 34. b5 {[%emt 0:01:58]} Kd6 {[%emt 0:00:23]} 35. Kd4 {[%emt 0:00:30]} Bf3 {[%emt 0:00:10]} 36. Ne4+ {[%emt 0:01:41]} Kc7 {[%emt 0:00:32]} 37. Nf2 {[%emt 0:00:31]} Kd6 {[%emt 0:02:44]} 38. a6 {[%emt 0:00:18]} Ba8 {[%emt 0:02:06]} 39. b6 {[%emt 0:00:21]} Bc6 {[%emt 0:00:19]} 40. Ne4+ {[%emt 0:00:31]} Kd7 {[%emt 0:00:15]} 41. Nc5+ {[%emt 0:30:16]} Kc8 {[%emt 0:31:50]} 42. a7 {[%emt 0:00:08]} Ba8 {[%emt 0:00:55]} 43. b7+ {[%emt 0:00:11]} Bxb7 {[%emt 0:00:14]} 44. Nxb7 {[%emt 0:00:06]} 1-0

[Event "FIDE World Senior-Women CC 2023"]
[Site "Terrasini"]
[Date "2023.10.30"]
[Round "6.1"]
[White "Strutinskaia, Galina"]
[Black "Calzetta Ruiz, Monica"]
[Result "1-0"]
[ECO "D00"]
[WhiteElo "2114"]
[BlackElo "2239"]
[Annotator "RC"]
[PlyCount "91"]
[EventDate "2023.10.22"]
[EventType "swiss"]
[EventCountry "ITA"]
[SourceTitle "playchess.com"]
[Source "ChessBase"]
[SourceQuality "1"]
[TimeControl "40/5400+30:1800+30"]

1. d4 {[%emt 0:00:03]} Nf6 {[%emt 0:00:07]} 2. Nc3 {[%emt 0:00:05]} d5 {[%emt 0:00:22]} 3. Bf4 {[%emt 0:00:08]} a6 {[%emt 0:03:03]} 4. e3 {[%emt 0:02:46]} e6 {[%emt 0:00:44]} 5. Bd3 {[%emt 0:03:19]} c5 {[%emt 0:00:07]} 6. Nf3 {[%emt 0:02:18]} c4 {[%emt 0:20:40]} 7. Be2 {[%emt 0:00:07]} b5 {[%emt 0:00:05]} 8. a3 {[%emt 0:01:02]} Nbd7 {[%emt 0:00:53]} 9. O-O {[%emt 0:01:07]} Be7 {[%emt 0:02:37]} 10. h3 {[%emt 0:06:50]} Bb7 {[%emt 0:02:56]} 11. Nd2 {[%emt 0:01:47]} O-O {[%emt 0:02:38]} 12. Bf3 {[%emt 0:00:55]} Qb6 {[%emt 0:05:18]} 13. Qe2 {[%emt 0:01:13]} Rac8 {[%emt 0:11:55]} 14. g4 {[%emt 0:05:39]} h6 {[%emt 0:06:34]} 15. Bg2 {[%emt 0:00:44]} Rfe8 {[%emt 0:03:44]} 16. Bg3 {[%emt 0:00:23]} Bc6 {[%emt 0:01:56]} 17. f4 {[%emt 0:02:10]} Nh7 {[%emt 0:09:32]} 18. Nf3 {[%emt 0:02:02]} a5 {[%emt 0:02:55]} 19. Qf2 {[%emt 0:03:33]} b4 {[%emt 0:00:16]} 20. axb4 {[%emt 0:00:27]} axb4 {[%emt 0:00:08]} 21. Ne2 {[%emt 0:00:20]} Ra8 {[%emt 0:06:23]} 22. Ne5 {[%emt 0:04:41]} Rxa1 {[%emt 0:02:29]} 23. Rxa1 {[%emt 0:00:37]} Nxe5 {[%emt 0:00:29]} 24. fxe5 {[%emt 0:00:14]} Ra8 {[%emt 0:00:07]} 25. Rf1 {[%emt 0:01:44]} Be8 {[%emt 0:00:37]} 26. e4 {[%emt 0:00:46]} dxe4 {[%emt 0:02:09]} 27. Bxe4 {[%emt 0:00:13]} Ra2 {[%emt 0:00:33]} 28. Rb1 {[%emt 0:02:21]} Ng5 {[%emt 0:00:51]} 29. Bg2 {[%emt 0:00:09]} Bc6 {[%emt 0:00:32]} 30. h4 {[%emt 0:00:28]} Ne4 {[%emt 0:01:33]} 31. Bxe4 {[%emt 0:02:17]} Bxe4 {[%emt 0:00:03]} 32. Rf1 {[%emt 0:00:08]} f5 {[%emt 0:01:56]} 33. exf6 {[%emt 0:01:04]} Bxf6 {[%emt 0:00:29]} 34. g5 {[%emt 0:00:35]} hxg5 {[%emt 0:00:17]} 35. Qe3 {[%emt 0:00:19]} Qc6 {[%emt 0:01:33]} 36. hxg5 {[%emt 0:00:28]} Bh1 {[%emt 0:05:11]} 37. d5 {[%emt 0:01:08]} Qxd5 {[%emt 0:00:19]} 38. Nf4 {[%emt 0:00:06]} Qd4 {[%emt 0:05:13]} 39. Qxd4 {[%emt 0:02:15]} Bxd4+ {[%emt 0:00:02]} 40. Kxh1 {[%emt 0:00:08]} Bxb2 {[%emt 0:01:32]} 41. Nxe6 {[%emt 0:32:09]} b3 {[%emt 0:30:48]} 42. Rf8+ {[%emt 0:00:55]} Kh7 {[%emt 0:00:04]} 43. cxb3 {[%emt 0:00:14]} cxb3 {[%emt 0:00:00]} 44. Rb8 {[%emt 0:00:00]} Ra3 {[%emt 0:00:00]} 45. Nf8+ {[%emt 0:00:00]} Kg8 {[%emt 0:00:00]} 46. g6 {[%emt 0:00:00]} 1-0

[Event "FIDE World Senior-Women CC 2023"]
[Site "Terrasini"]
[Date "2023.10.30"]
[Round "6.2"]
[White "Klinova, Masha"]
[Black "Khropova, Larisa"]
[Result "1/2-1/2"]
[ECO "B40"]
[WhiteElo "2249"]
[BlackElo "2054"]
[Annotator "RC"]
[PlyCount "62"]
[EventDate "2023.10.22"]
[EventType "swiss"]
[EventCountry "ITA"]
[SourceTitle "playchess.com"]
[Source "ChessBase"]
[SourceQuality "1"]
[TimeControl "40/5400+30:1800+30"]

1. e4 {[%emt 0:00:02]} c5 {[%emt 0:00:05]} 2. Nf3 {[%emt 0:00:04]} e6 {[%emt 0:00:05]} 3. c4 {[%emt 0:00:04]} Nc6 {[%emt 0:00:10]} 4. Nc3 {[%emt 0:00:09]} e5 {[%emt 0:00:24]} 5. d3 {[%emt 0:01:16]} d6 {[%emt 0:00:18]} 6. g3 {[%emt 0:01:02]} Be7 {[%emt 0:00:41]} 7. Bg2 {[%emt 0:00:05]} Nf6 {[%emt 0:00:12]} 8. O-O {[%emt 0:00:14]} O-O {[%emt 0:00:07]} 9. a3 {[%emt 0:00:36]} Be6 {[%emt 0:02:01]} 10. Rb1 {[%emt 0:02:52]} Rb8 {[%emt 0:06:37]} 11. b4 {[%emt 0:02:43]} b6 {[%emt 0:00:27]} 12. Ng5 {[%emt 0:10:05]} h6 {[%emt 0:02:17]} 13. Nxe6 {[%emt 0:02:56]} fxe6 {[%emt 0:00:06]} 14. f4 {[%emt 0:00:53]} Nd4 {[%emt 0:11:47]} 15. Bh3 {[%emt 0:08:26]} Kh8 {[%emt 0:08:50]} 16. Be3 {[%emt 0:01:32]} Kh7 {[%emt 0:14:37]} 17. Rb2 {[%emt 0:08:17]} Kh8 {[%emt 0:04:33]} 18. Qa4 {[%emt 0:07:11]} a6 {[%emt 0:18:00]} 19. bxc5 {[%emt 0:35:28]} bxc5 {[%emt 0:00:32]} 20. Rxb8 {[%emt 0:01:15]} Qxb8 {[%emt 0:00:05]} 21. Rb1 {[%emt 0:00:06]} Ne2+ {[%emt 0:01:37]} 22. Kg2 {[%emt 0:06:30]} Nxc3 {[%emt 0:00:36]} 23. Rxb8 {[%emt 0:00:05]} Nxa4 {[%emt 0:00:11]} 24. Rb7 {[%emt 0:00:09]} Bd8 {[%emt 0:04:24]} 25. Bxe6 {[%emt 0:00:52]} Re8 {[%emt 0:10:15]} 26. Bf7 {[%emt 0:04:48]} Rf8 {[%emt 0:05:07]} 27. Bg6 {[%emt 0:00:27]} Ne8 {[%emt 0:04:15]} 28. Bd2 {[%emt 0:03:03]} Nc7 {[%emt 0:01:22]} 29. Bf5 {[%emt 0:00:07]} Na8 {[%emt 0:01:00]} 30. Ra7 {[%emt 0:01:29]} N8b6 {[%emt 0:02:43]} 31. Rxa6 {[%emt 0:00:25]} Kg8 {[%emt 0:01:00]} 1/2-1/2